bitfinex-derivatives/quotes_BTCF0:USTF0_20250325
["timestamp","ask_amount","ask_price","bid_price","bid_amount"]
[1742906006319,0.1853308,87287.0,87286.0,0.071]
[1742906006724,0.1853308,87287.0,87286.0,0.1855521]
[1742906006906,0.1853308,87287.0,87286.0,0.071]
[1742906007110,0.1853308,87287.0,87286.0,0.1855521]
[1742906007310,0.1853308,87287.0,87286.0,0.2845521]
[1742906007506,0.1853308,87287.0,87286.0,0.5345521]
[1742906007507,0.1162308,87287.0,87286.0,0.5345521]
[1742906008314,0.1162308,87287.0,87286.0,0.1845521]
[1742906008514,0.00168,87287.0,87286.0,0.6445521]
[1742906008721,0.1162308,87287.0,87286.0,0.6455521]
[1742906009118,0.1718231,87289.0,87288.0,0.1145495]
[1742906009422,0.0572741,87289.0,87288.0,0.6345495]
[1742906009607,0.0572741,87289.0,87288.0,0.6715495]
[1742906009811,0.0572741,87289.0,87288.0,0.7080495]
[1742906010517,0.0572741,87289.0,87288.0,0.4580495]
[1742906010719,0.057271,87294.0,87293.0,0.171813]
[1742906010920,0.058951,87294.0,87293.0,0.571813]
[1742906011121,0.057271,87294.0,87293.0,0.571813]
[1742906011430,0.057271,87294.0,87293.0,0.645313]
[1742906012027,0.057271,87294.0,87293.0,0.646313]
[1742906012214,0.057271,87294.0,87293.0,0.5327714]
[1742906012523,0.12791101,87294.0,87293.0,0.5327714]
[1742906013316,0.12791101,87294.0,87293.0,0.039]
[1742906013511,0.16341101,87294.0,87293.0,0.039]
[1742906013822,0.0572761,87286.0,87284.0,0.00017178]
[1742906014027,0.1835534,87285.0,87284.0,0.00017178]
[1742906014223,0.18519341,87285.0,87284.0,0.00017178]
[1742906015021,0.18519341,87285.0,87284.0,0.11572648]
[1742906015326,0.18519341,87285.0,87284.0,0.34572648]
[1742906015527,0.18519341,87285.0,87284.0,0.38502648]
[1742906015709,0.18519341,87285.0,87284.0,0.15502648]
[1742906015915,0.18519341,87285.0,87284.0,0.04147178]
[1742906016317,0.18519341,87285.0,87284.0,0.35817178]
[1742906016521,0.18519341,87285.0,87284.0,0.07817178]
[1742906016722,0.18519341,87285.0,87284.0,0.34817178]
[1742906017021,0.18519341,87285.0,87284.0,0.46272648]
[1742906017223,0.18519341,87285.0,87284.0,0.19272648]
[1742906017527,0.18519341,87285.0,87284.0,0.07817178]
[1742906017919,0.18519341,87285.0,87284.0,0.19272648]
[1742906018323,0.18519341,87285.0,87284.0,0.07817178]
[1742906018725,0.18519341,87285.0,87284.0,0.19272648]
[1742906019026,0.18519341,87285.0,87284.0,0.44272648]
[1742906019232,0.18519341,87285.0,87284.0,0.19272648]
[1742906019426,0.18519341,87285.0,87284.0,0.42272648]
[1742906019627,0.18519341,87285.0,87284.0,0.19272648]
[1742906019824,0.18519341,87285.0,87284.0,0.38272648]
[1742906020029,0.18519341,87285.0,87284.0,0.19272648]
[1742906020531,0.18519341,87285.0,87284.0,0.30272648]
[1742906021130,0.18519341,87285.0,87284.0,0.18817178]
[1742906025022,0.18519341,87285.0,87284.0,0.07817178]
[1742906029036,0.18519341,87285.0,87284.0,0.17817178]
[1742906032330,0.19667779,87285.0,87284.0,0.17817178]
[1742906032836,0.18519341,87285.0,87284.0,0.17817178]
[1742906033731,0.18519341,87285.0,87284.0,0.17717178]
[1742906033931,0.19754174,87285.0,87284.0,0.17717178]
[1742906034939,0.19754174,87285.0,87284.0,0.17617178]
[1742906035732,0.19754174,87285.0,87284.0,0.07617178]
[1742906036128,0.31042174,87285.0,87284.0,0.07617178]
[1742906037432,0.67122174,87285.0,87284.0,0.07617178]
[1742906038232,0.67122174,87285.0,87279.0,0.0004583]
[1742906038233,0.11456,87280.0,87279.0,0.0004583]
[1742906038449,0.11628001,87280.0,87279.0,0.0204583]
[1742906038625,0.1145744,87269.0,87255.0,0.3608]
[1742906038825,0.5864757,87268.0,87263.0,0.03825838]
[1742906039028,0.58811571,87268.0,87263.0,0.03825838]
[1742906039642,0.114581,87264.0,87263.0,0.00045838]
[1742906039947,0.116261,87264.0,87263.0,8e-08]
[1742906040139,0.191661,87264.0,87263.0,8e-08]
[1742906041043,0.191661,87264.0,87249.0,0.0369]
[1742906041044,0.0572962,87256.0,87249.0,0.0369]
[1742906041246,0.114602,87248.0,87241.0,0.0362]
[1742906041446,0.11624201,87248.0,87241.0,0.0362]
[1742906041742,0.11624201,87248.0,87242.0,0.0359]
[1742906041939,0.11624201,87248.0,87242.0,0.1505093]
[1742906042137,0.19164201,87248.0,87242.0,0.0359]
[1742906042549,0.0573045,87243.0,87237.0,0.31524399]
[1742906042732,0.4754151,87238.0,87237.0,0.31524399]
[1742906042932,0.47705511,87238.0,87237.0,0.31524399]
[1742906043935,0.47705511,87238.0,87237.0,0.33524399]
[1742906044438,0.47705511,87238.0,87237.0,0.33624399]
[1742906044638,0.47705511,87238.0,87237.0,0.33724399]
[1742906045036,0.58997511,87238.0,87237.0,0.33724399]
[1742906045643,0.58997511,87238.0,87237.0,0.022]
[1742906047249,0.11625511,87238.0,87237.0,0.022]
[1742906047647,0.18395511,87238.0,87237.0,0.022]
[1742906048338,0.18395511,87238.0,87237.0,0.002]
[1742906048742,0.18395511,87238.0,87237.0,0.0699]
[1742906053338,0.18395511,87238.0,87237.0,0.1599]
[1742906053544,0.14935511,87238.0,87237.0,0.2745165]
[1742906053751,0.11625511,87238.0,87237.0,0.3645165]
[1742906054642,0.11625511,87238.0,87237.0,0.1845165]
[1742906055454,0.14915511,87238.0,87237.0,0.1845165]
[1742906055655,0.14915511,87238.0,87237.0,0.2165165]
[1742906056542,0.18075511,87238.0,87237.0,0.2165165]
[1742906057747,0.18075511,87238.0,87237.0,0.2155165]
[1742906058554,0.18075511,87238.0,87237.0,0.2145165]
[1742906061044,0.14915511,87238.0,87237.0,0.2145165]
[1742906063240,0.18385511,87238.0,87237.0,0.2145165]
[1742906067149,0.18385511,87238.0,87237.0,0.3245165]
[1742906067550,0.18381156,87238.0,87237.0,0.3245165]
[1742906067862,0.1146191,87235.0,87231.0,0.00045855]
[1742906068156,0.114623,87232.0,87231.0,0.13508185]
[1742906068461,0.11626301,87232.0,87231.0,0.72050565]
[1742906069461,0.11626301,87232.0,87231.0,0.72150565]
[1742906069652,0.18386301,87232.0,87231.0,0.72150565]
[1742906070158,0.15066301,87232.0,87231.0,0.72350565]
[1742906070560,0.18466301,87232.0,87231.0,0.72350565]
[1742906070757,0.18466301,87232.0,87231.0,0.72150565]
[1742906071057,0.18466301,87232.0,87231.0,0.72350565]
[1742906071261,0.15066301,87232.0,87231.0,0.72350565]
[1742906073666,0.1719335,87239.0,87238.0,0.0573043]
[1742906073859,0.23044441,87239.0,87238.0,0.6819194]
[1742906074170,0.23044441,87239.0,87238.0,0.6825194]
[1742906074371,0.23044441,87239.0,87238.0,0.5679043]
[1742906074557,0.26234441,87239.0,87238.0,0.5679043]
[1742906076269,0.26234441,87239.0,87238.0,0.0006]
[1742906076573,0.1146178,87236.0,87235.0,0.1811187]
[1742906076764,0.1146178,87236.0,87235.0,0.2023587]
[1742906076765,0.11585781,87236.0,87235.0,0.2023587]
[1742906076963,0.18265781,87236.0,87235.0,0.2023587]
[1742906077756,0.18265781,87236.0,87235.0,0.08874]
[1742906078267,0.18265781,87236.0,87235.0,0.05524]
[1742906078468,0.18265781,87236.0,87235.0,0.1698591]
[1742906079367,0.18265781,87236.0,87235.0,0.1378591]
[1742906082469,0.18265781,87236.0,87235.0,0.02324]
[1742906082671,0.18265781,87236.0,87235.0,0.022]
[1742906082968,0.19437334,87236.0,87235.0,0.022]
[1742906083874,0.18265781,87236.0,87235.0,0.0226]
[1742906085861,0.18265781,87236.0,87235.0,0.022]
[1742906086867,0.54345781,87236.0,87235.0,0.022]
[1742906088479,0.55506946,87236.0,87235.0,0.022]
[1742906089381,0.55506946,87236.0,87214.0,0.00332852]
[1742906089382,0.44045166,87236.0,87214.0,0.00332852]
[1742906089688,0.1146493,87212.0,87210.0,0.00498042]
[1742906089864,0.5883293,87212.0,87210.0,0.00498042]
[1742906090159,0.5896493,87212.0,87210.0,0.00498042]
[1742906090363,0.60128631,87212.0,87210.0,0.00498042]
[1742906090561,0.63488631,87212.0,87210.0,0.00498042]
[1742906091979,0.6232493,87212.0,87211.0,0.00656907]
[1742906092572,0.6573493,87212.0,87211.0,0.00656907]
[1742906095083,0.66866821,87212.0,87211.0,0.00656907]
[1742906095777,0.55578821,87212.0,87211.0,0.00656907]
[1742906095974,0.66866821,87212.0,87211.0,0.10656907]
[1742906096280,0.66866821,87212.0,87211.0,0.14076907]
[1742906096975,0.66866821,87212.0,87211.0,0.04076907]
[1742906097977,0.66866821,87212.0,87211.0,0.00656907]
[1742906100783,0.55578821,87212.0,87211.0,0.00656907]
[1742906100981,0.66866821,87212.0,87211.0,0.00656907]
[1742906101988,0.1146861,87184.0,87183.0,0.0004588]
[1742906102284,0.1160061,87184.0,87183.0,0.1889462]
[1742906102587,0.1160061,87184.0,87183.0,0.1889862]
[1742906102972,0.1160061,87184.0,87183.0,0.0742988]
[1742906103183,0.12727072,87184.0,87183.0,0.0010988]
[1742906103478,0.1501061,87184.0,87183.0,0.0004588]
[1742906103680,0.1844061,87184.0,87183.0,0.0004588]
[1742906104383,0.1854061,87184.0,87183.0,0.0004588]
[1742906105075,0.2204061,87184.0,87183.0,0.0004588]
[1742906105281,0.2204061,87184.0,87179.0,0.0683]
[1742906105282,0.1146914,87180.0,87179.0,0.0683]
[1742906105483,0.5897314,87180.0,87179.0,0.0683]
[1742906105678,0.6587314,87180.0,87179.0,0.0683]
[1742906106575,0.1147006,87173.0,87172.0,0.032]
[1742906106773,0.1160206,87173.0,87172.0,0.1526]
[1742906106971,0.1482206,87173.0,87172.0,0.1206]
[1742906107172,0.5423206,87173.0,87172.0,0.0006]
[1742906107373,0.1147059,87169.0,87168.0,0.033]
[1742906107586,0.2289059,87169.0,87168.0,0.033]
[1742906107779,0.2952059,87169.0,87168.0,0.0681]
[1742906108178,0.2952059,87169.0,87167.0,0.00045889]
[1742906108179,0.1805,87169.0,87167.0,0.00045889]
[1742906108376,0.1147282,87152.0,87139.0,0.0573723]
[1742906108570,0.1160482,87152.0,87151.0,0.04109897]
[1742906109282,0.1823482,87152.0,87151.0,0.04109897]
[1742906109673,0.1833482,87152.0,87151.0,0.04109897]
[1742906110684,0.1833482,87152.0,87151.0,0.15582857]
[1742906110876,0.1833482,87152.0,87151.0,0.04109897]
[1742906111188,0.1843482,87152.0,87151.0,0.04109897]
[1742906111389,0.1833482,87152.0,87151.0,0.15582857]
[1742906111689,0.1833482,87152.0,87151.0,0.04109897]
[1742906111890,0.1833482,87152.0,87151.0,0.15582857]
[1742906112087,0.1823482,87152.0,87151.0,0.15582857]
[1742906112587,0.1823482,87152.0,87151.0,0.04109897]
[1742906112989,0.1823482,87152.0,87151.0,0.15582857]
[1742906113183,0.1823482,87152.0,87151.0,0.04109897]
[1742906113686,0.1823482,87152.0,87151.0,0.00109897]
[1742906113890,0.1823482,87152.0,87138.0,0.3608]
[1742906113891,0.114744,87140.0,87139.0,0.0332]
[1742906114091,0.229184,87140.0,87139.0,0.0684]
[1742906114277,0.229184,87140.0,87139.0,0.0332]
[1742906114483,0.1147493,87136.0,87135.0,0.00045906]
[1742906114680,0.1162693,87136.0,87135.0,0.00045906]
[1742906115383,0.1490693,87136.0,87135.0,0.00045906]
[1742906115591,0.2619893,87136.0,87135.0,0.00045906]
[1742906115784,0.03532,87136.0,87135.0,0.22520966]
[1742906115988,0.2301893,87136.0,87135.0,0.37520966]
[1742906116289,0.2301893,87136.0,87135.0,0.29390966]
[1742906116683,0.2311893,87136.0,87135.0,0.17915906]
[1742906117389,0.2658893,87136.0,87135.0,0.17915906]
[1742906117694,0.2658893,87136.0,87135.0,0.39390966]
[1742906118692,0.2658893,87136.0,87135.0,0.18390966]
[1742906118888,0.2658893,87136.0,87135.0,0.29390966]
[1742906119194,0.2658893,87136.0,87135.0,0.18390966]
[1742906119388,0.2658893,87136.0,87135.0,0.26915906]
[1742906119594,0.2658893,87136.0,87135.0,0.16915906]
[1742906119995,0.2658893,87136.0,87135.0,0.06915906]
[1742906120186,0.2658893,87136.0,87135.0,0.17915906]
[1742906120381,0.2658893,87136.0,87135.0,0.06915906]
[1742906120577,0.2658893,87136.0,87135.0,0.29390966]
[1742906121390,0.1529693,87136.0,87135.0,0.29390966]
[1742906121587,0.1182693,87136.0,87135.0,0.29390966]
[1742906121786,0.00352,87136.0,87135.0,0.39390966]
[1742906121986,0.1182693,87136.0,87135.0,0.76470966]
[1742906122682,0.1182693,87136.0,87135.0,0.65470966]
[1742906122892,0.1182693,87136.0,87135.0,0.76470966]
[1742906123096,0.002,87136.0,87135.0,0.65470966]
[1742906123290,0.002,87136.0,87135.0,0.76470966]
[1742906123691,0.00352,87136.0,87135.0,0.76470966]
[1742906124295,0.1182693,87136.0,87135.0,0.76470966]
[1742906124503,0.00352,87136.0,87135.0,0.76470966]
[1742906124797,0.1167493,87136.0,87135.0,0.76470966]
[1742906125390,0.057374,87137.0,87136.0,0.057374]
[1742906125695,0.057374,87137.0,87136.0,0.597374]
[1742906125898,0.1721233,87137.0,87136.0,0.5992207]
[1742906126100,0.1736433,87137.0,87136.0,0.5992207]
[1742906127383,0.058894,87137.0,87136.0,0.5092207]
[1742906127690,0.057374,87137.0,87136.0,0.6092207]
[1742906127992,0.090174,87137.0,87136.0,0.6092207]
[1742906128393,0.092174,87137.0,87136.0,0.6112207]
[1742906128593,0.059374,87137.0,87136.0,0.5112207]
[1742906129390,0.002,87137.0,87136.0,0.6112207]
[1742906131698,0.1720796,87159.0,87157.0,0.1720791]
[1742906131898,0.1735996,87159.0,87158.0,0.105]
[1742906132100,0.00152,87159.0,87158.0,0.669719]
[1742906132401,0.114719,87159.0,87158.0,0.105]
[1742906132592,0.116239,87159.0,87158.0,0.2197203]
[1742906132903,0.116239,87159.0,87158.0,0.3297203]
[1742906133098,0.183639,87159.0,87158.0,0.3297203]
[1742906135003,0.06892,87159.0,87158.0,0.5997203]
[1742906135200,0.0674,87159.0,87158.0,0.5997203]
[1742906135390,0.0001721,87160.0,87159.0,0.114719]
[1742906135592,0.0001721,87160.0,87159.0,0.699119]
[1742906138303,0.0011721,87160.0,87159.0,0.699119]
[1742906138904,0.1158898,87160.0,87159.0,0.699119]
[1742906140693,0.1801898,87160.0,87159.0,0.699119]
[1742906140902,0.0654721,87160.0,87159.0,0.699119]
[1742906142000,0.0011721,87160.0,87159.0,0.699119]
[1742906144508,0.0011721,87160.0,87159.0,1.059919]
[1742906145503,0.0652721,87160.0,87159.0,1.059919]
[1742906168225,0.0652721,87160.0,87159.0,1.33380105]
[1742906169927,0.0573411,87187.0,87175.0,0.114698]
[1742906170114,0.002,87176.0,87175.0,0.654698]
[1742906170620,0.002,87176.0,87175.0,0.720798]
[1742906170815,0.0004,87176.0,87175.0,0.720798]
[1742906171216,0.0004,87176.0,87175.0,0.73241576]
[1742906171552,0.0342,87181.0,87180.0,0.1146914]
[1742906171720,0.0342,87181.0,87180.0,0.5946914]
[1742906171917,0.0342,87181.0,87180.0,0.6620914]
[1742906173328,0.0352,87181.0,87180.0,0.6620914]
[1742906173513,0.001,87181.0,87180.0,0.6620914]
[1742906174327,0.001,87181.0,87180.0,0.6640914]
[1742906174714,0.0663,87183.0,87182.0,0.1146888]
[1742906174915,0.0679,87183.0,87182.0,0.9554888]
[1742906175113,0.0004,87192.0,87190.0,0.1146782]
[1742906175315,0.0004,87192.0,87190.0,0.9454782]
[1742906175511,0.01158602,87205.0,87190.0,0.9454782]
[1742906175512,0.0573248,87212.0,87204.0,0.1146585]
[1742906175721,0.00152,87206.0,87205.0,0.1146585]
[1742906175923,0.1150551,87208.0,87207.0,0.1146559]
[1742906176118,0.1146572,87206.0,87205.0,0.1146573]
[1742906176323,0.171991,87204.0,87203.0,0.11466]
[1742906176510,0.173511,87204.0,87203.0,0.48466]
[1742906178419,0.173511,87204.0,87203.0,0.37]
[1742906178931,0.242411,87204.0,87203.0,0.37]
[1742906179316,0.242411,87204.0,87200.0,0.1146645]
[1742906179317,0.1146651,87200.0,87199.0,0.0001721]
[1742906179628,0.4770651,87200.0,87199.0,0.0001721]
[1742906179827,0.5107651,87200.0,87199.0,0.0001721]
[1742906180430,0.1146888,87182.0,87181.0,0.80779172]
[1742906180635,0.11624881,87182.0,87181.0,0.84779172]
[1742906180820,0.14994881,87182.0,87181.0,0.5728298]
[1742906182325,0.18234881,87182.0,87181.0,0.5758298]
[1742906182522,0.18234881,87182.0,87181.0,0.5778298]
[1742906183629,0.20884881,87182.0,87181.0,0.5768298]
[1742906184332,0.20884881,87182.0,87181.0,0.4048]
[1742906184530,0.20884881,87182.0,87181.0,0.4028]
[1742906184733,0.20884881,87182.0,87181.0,0.5174901]
[1742906185433,0.20884881,87182.0,87181.0,0.5501901]
[1742906186426,0.20884881,87182.0,87181.0,0.5491901]
[1742906187734,0.20884881,87182.0,87181.0,0.5828901]
[1742906187935,0.20884881,87182.0,87181.0,0.5838901]
[1742906189232,0.20884881,87182.0,87181.0,0.5828901]
[1742906189436,0.20884881,87182.0,87181.0,0.5838901]
[1742906191331,0.17644881,87182.0,87181.0,0.5838901]
[1742906192132,0.14994881,87182.0,87181.0,0.5838901]
[1742906195044,0.17644881,87182.0,87181.0,0.5838901]
[1742906197734,0.14994881,87182.0,87181.0,0.5838901]
[1742906203252,0.14994881,87182.0,87181.0,0.2230901]
[1742906203848,0.00156001,87182.0,87181.0,0.2230901]
[1742906204052,0.0001721,87190.0,87189.0,0.1146796]
[1742906204247,0.1146626,87202.0,87201.0,0.1146625]
[1742906204448,0.1161826,87202.0,87201.0,0.7727625]
[1742906204749,0.1503826,87202.0,87201.0,0.0981]
[1742906204949,0.1503826,87202.0,87201.0,0.0317]
[1742906205136,0.1747826,87202.0,87201.0,0.0317]
[1742906205939,0.18653105,87202.0,87201.0,0.0317]
[1742906206352,0.19053105,87202.0,87201.0,0.0317]
[1742906206854,0.1787826,87202.0,87201.0,0.0317]
[1742906207247,0.1747826,87202.0,87201.0,0.0317]
[1742906207450,0.1767826,87202.0,87201.0,0.0317]
[1742906207649,0.1817826,87202.0,87201.0,0.0317]
[1742906208453,0.1787826,87202.0,87201.0,0.0317]
[1742906228373,0.1146717,87195.0,87193.0,0.0001721]
[1742906228576,0.1146953,87177.0,87176.0,0.32093447]
[1742906228771,0.1146953,87177.0,87176.0,0.30623777]
[1742906229072,0.1162153,87177.0,87176.0,0.30623777]
[1742906229256,0.1162153,87177.0,87176.0,0.56623777]
[1742906229462,0.1162153,87177.0,87176.0,0.30623777]
[1742906229463,0.1146953,87177.0,87176.0,0.30623777]
[1742906229664,0.1162153,87177.0,87176.0,0.30623777]
[1742906229865,0.1162153,87177.0,87176.0,0.42093447]
[1742906230066,0.1162153,87177.0,87176.0,0.30623777]
[1742906230262,0.1162153,87177.0,87176.0,0.1]
[1742906230966,0.1162153,87177.0,87176.0,0.102]
[1742906231566,0.1473153,87177.0,87176.0,0.102]
[1742906232876,0.1162153,87177.0,87176.0,0.102]
[1742906233270,0.1162153,87177.0,87176.0,0.4566967]
[1742906233779,0.1162153,87177.0,87176.0,0.5220967]
[1742906234863,0.1162153,87177.0,87176.0,0.3920967]
[1742906236580,0.1162153,87177.0,87176.0,0.2820967]
[1742906237067,0.1162153,87177.0,87176.0,0.5120967]
[1742906239090,0.1162153,87177.0,87176.0,0.5220967]
[1742906240576,0.1162153,87177.0,87176.0,0.2820967]
[1742906240766,0.1162153,87177.0,87176.0,0.5420967]
[1742906241074,0.1162153,87177.0,87176.0,0.2820967]
[1742906242466,0.1162153,87177.0,87176.0,0.1674]
[1742906242676,0.1162153,87177.0,87176.0,0.2820967]
[1742906242865,0.1503153,87177.0,87176.0,0.1674]
[1742906243271,0.19561635,87177.0,87176.0,0.0674]
[1742906245083,0.19561635,87177.0,87176.0,0.2974]
[1742906245278,0.16161635,87177.0,87176.0,0.4120967]
[1742906245483,0.1162153,87177.0,87176.0,0.4120967]
[1742906245875,0.1162153,87177.0,87176.0,0.1820967]
[1742906246069,0.1162153,87177.0,87176.0,0.3920967]
[1742906246377,0.1162153,87177.0,87176.0,0.1820967]
[1742906246567,0.1162153,87177.0,87176.0,0.2920967]
[1742906246763,0.1162153,87177.0,87176.0,0.2820967]
[1742906246967,0.1162153,87177.0,87176.0,0.1820967]
[1742906247183,0.1162153,87177.0,87176.0,0.2920967]
[1742906247885,0.1162153,87177.0,87176.0,0.1774]
[1742906248675,0.1162153,87177.0,87176.0,0.0674]
[1742906248891,0.1495153,87177.0,87176.0,0.0674]
[1742906250183,0.1837153,87177.0,87176.0,0.0674]
[1742906252974,0.1837153,87177.0,87176.0,0.1820967]
[1742906253187,0.1837153,87177.0,87176.0,0.1674]
[1742906253380,0.1837153,87177.0,87176.0,0.0674]
[1742906253988,0.1837153,87177.0,87176.0,0.3174]
[1742906254285,0.1837153,87177.0,87176.0,0.0674]
[1742906254989,0.1837153,87177.0,87176.0,0.1774]
[1742906255683,0.1837153,87177.0,87176.0,0.0674]
[1742906257494,0.1837153,87177.0,87176.0,0.0361]
[1742906257791,0.2185153,87177.0,87176.0,0.0361]
[1742906260476,0.1147045,87170.0,87169.0,0.0672]
[1742906260681,0.11626451,87170.0,87169.0,0.0672]
[1742906260881,0.14946451,87170.0,87169.0,0.0672]
[1742906261879,0.18316451,87170.0,87169.0,0.2166059]
[1742906262079,0.18316451,87170.0,87169.0,0.1019]
[1742906262387,0.18316451,87170.0,87169.0,0.1059]
[1742906265899,0.19466852,87170.0,87169.0,0.1059]
[1742906270396,0.0573573,87163.0,87152.0,0.1147277]
[1742906270591,0.1147269,87153.0,87152.0,0.234]
[1742906270891,0.1163269,87153.0,87152.0,0.234]
[1742906271080,0.1487269,87153.0,87152.0,0.234]
[1742906271284,0.1163269,87153.0,87152.0,0.3487282]
[1742906271891,0.1163269,87153.0,87152.0,0.360021]
[1742906272286,0.1173269,87153.0,87152.0,0.360021]
[1742906273188,0.1183269,87153.0,87152.0,0.360021]
[1742906273386,0.1183269,87153.0,87152.0,0.428921]
[1742906273587,0.1167269,87153.0,87152.0,0.428921]
[1742906275703,0.11828691,87153.0,87152.0,0.428921]
[1742906277504,0.00356001,87153.0,87152.0,0.428921]
[1742906277693,0.002,87153.0,87152.0,0.428921]
[1742906277892,0.1167269,87153.0,87152.0,0.428921]
[1742906278089,0.002,87153.0,87152.0,1.928921]
[1742906278609,0.1167269,87153.0,87152.0,1.928921]
[1742906279802,0.1167269,87153.0,87152.0,0.428921]
[1742906279999,0.1167269,87153.0,87152.0,0.3029]
[1742906280200,0.1511269,87153.0,87152.0,0.3029]
[1742906280391,0.1829469,87153.0,87152.0,0.1029]
[1742906280705,0.1147401,87143.0,87138.0,0.1147462]
[1742906280914,0.1147401,87143.0,87142.0,0.57623777]
[1742906281292,0.1466401,87143.0,87142.0,0.24623777]
[1742906281607,0.1481601,87143.0,87142.0,0.24623777]
[1742906282005,0.1808601,87143.0,87142.0,0.2199414]
[1742906282807,0.1818601,87143.0,87142.0,0.2199414]
[1742906283311,0.1828601,87143.0,87142.0,0.2199414]
[1742906283710,0.1828601,87143.0,87142.0,0.2524414]
[1742906286399,0.1828601,87143.0,87142.0,0.04]
[1742906286595,0.1147493,87136.0,87132.0,0.20618301]
[1742906286795,0.1162693,87136.0,87132.0,0.20618301]
[1742906287002,0.1796693,87136.0,87132.0,0.20618301]
[1742906287202,0.1796693,87136.0,87132.0,0.23628301]
[1742906288414,0.1806693,87136.0,87132.0,0.23628301]
[1742906288911,0.1796693,87136.0,87132.0,0.26758301]
[1742906289105,0.1806693,87136.0,87132.0,0.26758301]
[1742906289301,0.1806693,87136.0,87132.0,0.20618301]
[1742906289505,0.1796693,87136.0,87132.0,0.20618301]
[1742906290407,0.1796693,87136.0,87123.0,0.0302]
[1742906290613,0.1796693,87136.0,87124.0,0.0331]
[1742906290810,0.2923893,87136.0,87124.0,0.0331]
[1742906291016,0.1147638,87125.0,87124.0,0.0331]
[1742906291201,0.22904381,87125.0,87124.0,0.02]
[1742906291909,0.1147836,87110.0,87108.0,0.20618301]
[1742906292115,0.2603049,87109.0,87108.0,0.34618301]
[1742906292317,0.2619049,87109.0,87108.0,0.43618301]
[1742906292912,0.2619049,87109.0,87108.0,0.55096921]
[1742906293211,0.2619049,87109.0,87108.0,0.74096921]
[1742906293411,0.1475849,87109.0,87108.0,0.72386921]
[1742906293815,0.1485849,87109.0,87108.0,0.72386921]
[1742906294514,0.1501049,87109.0,87108.0,0.5176862]
[1742906294708,0.1501049,87109.0,87108.0,0.23]
[1742906294914,0.1147915,87104.0,87103.0,0.00045922]
[1742906295213,0.1163915,87104.0,87103.0,0.10045922]
[1742906295716,0.1163915,87104.0,87103.0,0.16185922]
[1742906295912,0.1789915,87104.0,87103.0,0.16185922]
[1742906296108,0.1799915,87104.0,87103.0,0.13155922]
[1742906296506,0.1809915,87104.0,87103.0,0.10045922]
[1742906297506,0.1809915,87104.0,87103.0,0.00045922]
[1742906298214,0.1809915,87104.0,87103.0,0.10045922]
[1742906298613,0.2927115,87104.0,87103.0,0.10045922]
[1742906298817,0.29265191,87104.0,87103.0,0.10045922]
[1742906299018,0.29265191,87104.0,87103.0,0.00045922]
[1742906299216,0.29265191,87104.0,87103.0,0.11525202]
[1742906299517,0.29165191,87104.0,87103.0,0.11525202]
[1742906299720,0.29165191,87104.0,87103.0,0.30525202]
[1742906299920,0.29165191,87104.0,87103.0,0.11045922]
[1742906300116,0.14733191,87104.0,87103.0,0.22525202]
[1742906300422,0.11633191,87104.0,87103.0,0.22525202]
[1742906300618,0.11633191,87104.0,87103.0,0.28735202]
[1742906301412,0.11633191,87104.0,87103.0,0.29914716]
[1742906302821,0.0016,87104.0,87103.0,0.81994716]
[1742906303015,0.1721847,87107.0,87106.0,0.1147888]
[1742906303212,0.1737047,87107.0,87106.0,0.3947888]
[1742906303520,0.1721847,87107.0,87106.0,0.4855888]
[1742906303720,0.1737047,87107.0,87106.0,0.4855888]
[1742906305510,0.1737047,87107.0,87106.0,0.2055888]
[1742906306511,0.1737047,87107.0,87106.0,0.3055888]
[1742906307619,0.1737047,87107.0,87106.0,0.4155888]
[1742906308011,0.0589138,87107.0,87106.0,0.5255888]
[1742906308306,0.1147853,87109.0,87108.0,0.1147849]
[1742906308521,0.1163853,87109.0,87108.0,0.4847849]
[1742906308915,0.1163853,87109.0,87108.0,0.3747849]
[1742906308916,0.0016,87109.0,87108.0,0.3747849]
[1742906309122,0.0016,87109.0,87108.0,0.6047849]
[1742906309323,0.1149536,87112.0,87111.0,0.1147822]
[1742906309623,0.11272,87125.0,87123.0,0.0573825]
[1742906309830,0.17321931,87129.0,87128.0,0.1147598]
[1742906310129,0.17429932,87129.0,87128.0,0.3953598]
[1742906310325,0.17321931,87129.0,87128.0,0.3953598]
[1742906310512,0.17321931,87129.0,87128.0,0.1153598]
[1742906311029,0.20521931,87129.0,87128.0,0.0006]
[1742906311325,0.1147638,87125.0,87124.0,0.2597242]
[1742906311530,0.11584381,87125.0,87124.0,0.2603242]
[1742906311827,0.11584381,87125.0,87124.0,0.3703242]
[1742906312529,0.11584381,87125.0,87124.0,0.38161251]
[1742906312918,0.11584381,87125.0,87124.0,0.4703242]
[1742906313224,0.11584381,87125.0,87124.0,0.2603242]
[1742906313420,0.11684381,87125.0,87124.0,0.1455644]
[1742906313628,0.14784381,87125.0,87124.0,0.0308]
[1742906313819,0.17924381,87125.0,87124.0,0.1455651]
[1742906316623,0.17824381,87125.0,87124.0,0.1455651]
[1742906317833,0.17824381,87125.0,87124.0,0.0308]
[1742906318934,0.17824381,87125.0,87124.0,0.0006]
[1742906319228,0.29096381,87125.0,87124.0,0.0006]
[1742906319429,0.65176381,87125.0,87124.0,0.0006]
[1742906319640,0.1147691,87121.0,87120.0,0.0001722]
[1742906319932,0.11584911,87121.0,87120.0,0.0001722]
[1742906320128,0.1147822,87111.0,87104.0,0.27496192]
[1742906320329,0.11586221,87111.0,87110.0,0.22678301]
[1742906320528,0.18026221,87111.0,87110.0,0.22678301]
[1742906321929,0.18026221,87111.0,87110.0,0.0206]
[1742906322126,0.19187118,87111.0,87110.0,0.02]
[1742906322432,0.1147888,87106.0,87105.0,0.0308]
[1742906322634,0.11586881,87106.0,87105.0,0.0714]
[1742906322833,0.14816881,87106.0,87105.0,0.0406]
[1742906323039,0.17986881,87106.0,87105.0,0.0406]
[1742906323530,0.17986881,87106.0,87105.0,0.0006]
[1742906324627,0.54066881,87106.0,87105.0,0.0006]
[1742906325342,0.3608,87125.0,87115.0,0.0573881]
[1742906325632,0.1147571,87133.0,87132.0,0.1147523]
[1742906325834,0.2045292,87134.0,87133.0,0.0305]
[1742906326040,0.2045292,87134.0,87133.0,0.03114]
[1742906326041,0.2051692,87134.0,87133.0,0.03114]
[1742906326231,0.2051692,87134.0,87133.0,0.0305]
[1742906326429,0.2051692,87134.0,87130.0,0.0319]
[1742906326430,0.1147559,87131.0,87130.0,0.0319]
[1742906326634,0.1147691,87121.0,87120.0,0.0305]
[1742906326930,0.1147915,87106.0,87105.0,0.12643833]
[1742906327136,0.11539151,87106.0,87105.0,0.25765833]
[1742906327329,0.11539151,87106.0,87105.0,0.28915833]
[1742906327533,0.11539151,87106.0,87105.0,0.2775096]